bitfinex-derivatives/quotes_ETHF0:USTF0_20250327
["timestamp","ask_amount","ask_price","bid_price","bid_amount"]
[1743044014696,5.83,2034.2,2034.1,0.98802245]
[1743044014904,5.83,2034.2,2034.1,1.66842245]
[1743044015102,5.83,2034.2,2034.1,2.16787355]
[1743044015397,5.83,2034.2,2034.1,3.46447355]
[1743044015989,5.83,2034.2,2034.1,3.46447546]
[1743044016402,0.98288,2034.6,2034.1,2.48136546]
[1743044016603,3.406,2034.6,2034.5,0.98289]
[1743044016999,4.38892,2034.6,2034.4,0.98295]
[1743044017203,5.71572,2034.6,2034.5,1.4074]
[1743044017401,5.71567,2034.6,2034.5,1.4074]
[1743044017800,3.406,2034.6,2034.5,2.39032]
[1743044018107,4.38887,2034.6,2034.5,2.39032]
[1743044020807,4.38887,2034.6,2034.5,1.4074]
[1743044021102,5.75157,2034.6,2034.5,2.39032]
[1743044021309,5.75157,2034.6,2034.5,1.4074]
[1743044021803,5.75157,2034.6,2034.5,2.39032]
[1743044021997,5.83,2034.8,2034.7,0.98282]
[1743044022202,3.394,2034.9,2034.8,0.98277]
[1743044022398,4.37673,2034.9,2034.8,0.98277]
[1743044022706,0.98277,2034.8,2034.7,2.9827]
[1743044022906,4.37675,2034.9,2034.7,2.9827]
[1743044023108,4.37675,2034.9,2034.8,1.2968]
[1743044023502,3.394,2034.9,2034.8,2.27957]
[1743044023708,11.724,2034.9,2034.1,0.00491245]
[1743044024001,3.2078,2034.3,2034.1,0.00491245]
[1743044024309,3.2078,2034.3,2034.2,0.98306]
[1743044024310,3.431,2034.3,2034.2,0.98306]
[1743044024502,3.431,2034.3,2034.2,1.66466]
[1743044025812,4.41194,2034.5,2034.3,0.98298]
[1743044026008,4.41194,2034.5,2034.4,2.0052]
[1743044026511,3.427,2034.6,2034.5,0.98292]
[1743044026709,3.427,2034.6,2034.5,2.34452]
[1743044027306,0.98284,2034.7,2034.5,2.34452]
[1743044027501,0.98284,2034.7,2034.6,1.3616]
[1743044027902,4.40881,2034.8,2034.6,2.34446]
[1743044028108,4.4088,2034.8,2034.6,2.34446]
[1743044028308,4.4088,2034.8,2034.7,2.0367]
[1743044028504,0.9828,2034.8,2034.7,2.0367]
[1743044028720,0.9828,2034.8,2034.7,1.3616]
[1743044028909,2.4034,2034.8,2034.7,1.3616]
[1743044032521,0.98292,2034.5,2034.4,0.6995]
[1743044033812,1.3575,2034.5,2034.2,0.98304]
[1743044034022,0.98297,2034.4,2034.3,1.4073]
[1743044034711,4.19069,2034.6,2034.3,1.4073]
[1743044035021,0.98292,2034.5,2034.3,2.3903]
[1743044035325,0.98292,2034.5,2034.4,2.096]
[1743044035816,2.30652,2034.5,2034.4,2.096]
[1743044036017,3.416,2034.6,2034.4,2.096]
[1743044036219,3.416,2034.6,2034.5,2.41192]
[1743044036421,4.40183,2034.7,2034.5,3.08928]
[1743044036620,4.40183,2034.7,2034.6,1.429]
[1743044037118,3.419,2034.7,2034.6,2.41187]
[1743044037319,4.40182,2034.7,2034.6,1.429]
[1743044040822,5.71542,2034.8,2034.6,1.429]
[1743044041120,5.71537,2034.8,2034.7,0.6513]
[1743044041322,4.39177,2034.8,2034.7,0.6513]
[1743044043614,3.2078,2034.9,2034.7,0.6513]
[1743044043819,0.00736865,2035.1,2034.7,1.962]
[1743044044016,0.00736865,2035.1,2035.0,0.98268]
[1743044044234,0.00736865,2035.1,2035.0,1.48155447]
[1743044044620,0.00736865,2035.1,2035.0,42.28155447]
[1743044046423,0.00736865,2035.1,2035.0,44.78155447]
[1743044047633,0.00736865,2035.1,2035.0,44.78030723]
[1743044047824,4.19027,2035.5,2035.4,0.98248]
[1743044047825,3.2078,2035.5,2035.4,0.98248]
[1743044048125,0.98255,2035.3,2035.1,4.5696]
[1743044048430,0.98255,2035.3,2035.2,1.3618]
[1743044048633,0.98255,2035.3,2035.2,2.34438]
[1743044048839,0.6649,2035.4,2035.2,2.34435]
[1743044049026,1.64738,2035.4,2035.3,1.3618]
[1743044050121,1.64738,2035.4,2035.3,2.34433]
[1743044050321,7.58861865,2035.5,2035.3,2.34433]
[1743044050533,7.58860865,2035.5,2035.4,1.3618]
[1743044050723,4.19760865,2035.5,2035.4,1.3618]
[1743044051825,5.54500865,2035.5,2035.4,1.3618]
[1743044052227,4.56256865,2035.5,2035.4,2.34428]
[1743044052622,5.54500865,2035.5,2035.4,1.3618]
[1743044053323,4.56256865,2035.5,2035.2,1.68625]
[1743044053529,2.32988,2035.4,2035.3,1.3583]
[1743044054235,1.3474,2035.4,2035.1,0.98259]
[1743044054425,2.92117,2035.3,2035.2,1.425]
[1743044054626,2.4566,2035.1,2034.2,3.2078]
[1743044054830,0.9829,2034.6,2034.4,1.425]
[1743044055128,4.19065,2034.7,2034.5,0.98289]
[1743044055336,4.19065,2034.7,2034.6,1.425]
[1743044055730,7.59565,2034.7,2034.6,1.425]
[1743044056129,0.98292,2034.5,2034.4,0.00491245]
[1743044058932,2.30241,2034.6,2034.4,0.98788245]
[1743044059141,0.98292,2034.5,2034.4,0.98788245]
[1743044059634,2.30241,2034.6,2034.4,0.98788245]
[1743044059834,2.30241,2034.6,2034.5,1.3748]
[1743044061039,0.98292,2034.5,2034.4,0.00491245]
[1743044061438,0.98292,2034.5,2034.4,1.37971245]
[1743044065041,0.98292,2034.5,2034.4,0.00491245]
[1743044066137,4.37392,2034.5,2034.4,0.00491245]
[1743044067042,4.36992,2034.5,2034.4,0.00491245]
[1743044069040,0.98292,2034.5,2034.4,0.00491245]
[1743044069344,4.36592,2034.5,2034.4,0.00491245]
[1743044070941,4.36592,2034.5,2034.4,2.10081245]
[1743044071149,3.383,2034.5,2034.4,3.08378245]
[1743044071750,4.6985,2034.6,2034.5,0.98292]
[1743044071954,7.01547,2034.6,2034.5,1.3745]
[1743044072635,7.01347,2034.6,2034.5,1.3745]
[1743044073943,0.98292,2034.5,2034.4,0.00491245]
[1743044074255,2.31702,2034.5,2034.4,0.00491245]
[1743044075959,0.98311,2034.1,2034.0,1.3279]
[1743044076263,0.98321,2033.9,2033.8,0.7159]
[1743044076463,0.98321,2033.9,2033.8,41.5159]
[1743044076661,0.98321,2033.9,2033.7,0.98327]
[1743044077266,0.98324,2033.9,2033.7,0.98329]
[1743044077757,0.98324,2033.9,2033.6,44.99112]
[1743044077960,4.35229,2033.8,2033.6,4.19112]
[1743044078161,0.98331,2033.7,2033.6,3.2078]
[1743044078558,3.369,2033.8,2033.7,0.98331]
[1743044079160,4.35226,2033.8,2033.7,1.3383]
[1743044082766,0.98326,2033.8,2033.7,1.3383]
[1743044082965,4.34426,2033.8,2033.7,1.3383]
[1743044083167,3.361,2033.8,2033.7,2.32161]
[1743044083567,5.68836,2033.8,2033.7,1.3383]
[1743044084967,5.68436,2033.8,2033.7,1.3383]
[1743044086272,2.32736,2033.8,2033.7,1.3383]
[1743044086469,5.68036,2033.8,2033.7,1.3383]
[1743044091174,5.68036,2033.8,2033.5,2.37628]
[1743044091175,0.98335,2033.6,2033.5,0.7159]
[1743044091571,2.1316,2033.7,2033.3,3.9207]
[1743044091783,0.6484,2033.6,2033.3,2.35519]
[1743044092075,4.19125,2033.4,2033.3,1.3717]
[1743044092376,0.9835,2033.3,2033.2,40.8]
[1743044092577,2.4086,2033.3,2033.2,40.8]
[1743044093468,2.4086,2033.3,2033.1,1.64238]
[1743044093669,0.9835,2033.3,2033.2,1.3193]
[1743044093869,4.3225,2033.3,2033.2,1.3193]
[1743044095974,0.9835,2033.3,2033.2,1.3193]
[1743044096276,4.3225,2033.3,2033.2,1.3193]
[1743044096581,4.89777,2033.4,2033.2,2.30285]
[1743044096879,4.3215,2033.4,2033.1,40.8]
[1743044097072,0.9835,2033.3,2033.2,1.4348]
[1743044100886,3.338,2033.4,2033.2,2.41832]
[1743044101084,4.83959,2033.6,2033.4,0.98343]
[1743044101283,4.83959,2033.6,2033.5,0.6728]
[1743044101488,8.16959,2033.6,2033.5,0.6728]
[1743044101985,8.82379,2033.6,2033.5,0.6728]
[1743044102586,2.45851,2033.5,2032.9,0.98365]
[1743044102890,0.98364,2033.0,2032.9,1.3803]
[1743044103085,4.32464,2033.0,2032.9,1.3803]
[1743044103987,0.98374,2032.8,2032.7,0.6728]
[1743044105192,0.98374,2032.8,2032.7,1.65659]
[1743044105489,0.98374,2032.8,2032.7,2.0029]
[1743044106387,0.98374,2032.8,2032.7,1.3301]
[1743044106790,1.64674,2032.8,2032.7,1.3301]
[1743044107289,0.00736865,2033.0,2032.9,0.98369]
[1743044108382,0.00736865,2033.0,2032.8,1.3301]
[1743044108794,0.00736865,2033.0,2032.9,0.98369]
[1743044113686,0.99103865,2033.0,2032.8,1.3301]
[1743044113891,1.33396865,2033.0,2032.9,0.98369]
[1743044114088,0.00736865,2033.0,2032.9,0.98369]
[1743044114292,0.00736865,2033.0,2032.8,1.3301]
[1743044114592,4.19882865,2033.0,2032.8,1.3301]
[1743044114797,5.59772865,2033.0,2032.9,0.98369]
[1743044115486,4.61406865,2033.0,2032.9,0.98369]
[1743044116485,5.59770865,2033.0,2032.9,0.98369]
[1743044116685,4.61406865,2033.0,2032.9,0.98369]
[1743044117193,3.21516865,2033.0,2032.9,0.98369]
[1743044120093,4.55496865,2033.0,2032.9,0.98369]
[1743044120690,5.53860865,2033.0,2032.9,0.98369]
[1743044121693,5.53860865,2033.0,2032.8,1.3301]
[1743044121895,1.3112,2032.9,2032.8,2.3138]
[1743044122086,1.3112,2032.9,2032.8,2.81376647]
[1743044123992,2.29489,2032.9,2032.8,2.81376647]
[1743044124497,3.21516865,2033.0,2032.9,0.98369]
[1743044124694,3.21516865,2033.0,2032.9,2.35109]
[1743044124893,4.63566865,2033.0,2032.9,2.85125951]
[1743044125096,5.61930865,2033.0,2032.9,2.85125951]
[1743044125597,5.61930865,2033.0,2032.9,2.85128277]
[1743044126395,5.61930865,2033.0,2032.9,1.3674]
[1743044128196,4.63566865,2033.0,2032.9,2.35109]
[1743044128389,5.61930865,2033.0,2032.9,1.3674]
[1743044131501,5.61930865,2033.0,2032.9,1.86805088]
[1743044132200,2.41150865,2033.0,2032.9,1.86831961]
[1743044132500,2.41150865,2033.0,2032.9,1.3674]
[1743044142599,3.88699865,2033.0,2032.6,0.7007]
[1743044142810,0.98374,2032.8,2032.7,1.79476665]
[1743044143012,0.98384,2032.6,2032.5,41.4893]
[1743044143307,0.98384,2032.6,2032.5,1.79484136]
[1743044143700,2.95854,2032.6,2032.5,1.79484136]
[1743044144606,2.95854,2032.6,2032.5,0.50134136]
[1743044144807,2.95854,2032.6,2032.5,1.79484136]
[1743044145008,2.95854,2032.6,2032.5,1.2935]
[1743044145208,2.95854,2032.6,2032.5,1.79468135]
[1743044145612,2.95854,2032.6,2032.5,1.2935]
[1743044146608,3.2078,2032.9,2032.5,1.2935]
[1743044146807,3.2078,2032.9,2032.6,1.68262]
[1743044146808,5.64387,2032.8,2032.6,1.68262]
[1743044147007,5.64387,2032.8,2032.7,1.3197]
[1743044147208,4.25977,2032.8,2032.7,1.3197]
[1743044147911,4.26077,2032.8,2032.7,1.3197]
[1743044151316,3.277,2032.8,2032.5,2.34207]
[1743044151616,0.98382,2032.7,2032.6,1.3938]
[1743044157114,3.264,2032.8,2032.7,0.98379]
[1743044157316,0.99104865,2033.0,2032.8,0.98374]
[1743044157514,4.25604865,2033.0,2032.9,1.3577]
[1743044158020,4.25604865,2033.0,2032.9,2.6641]
[1743044159819,3.27236865,2033.0,2032.9,2.6641]
[1743044160022,4.25600865,2033.0,2032.9,2.6641]
[1743044161025,4.25600865,2033.0,2032.9,1.3064]
[1743044162117,4.25600865,2033.0,2032.9,2.0109]
[1743044163026,5.64830865,2033.0,2032.9,2.0109]
[1743044163529,5.64830865,2033.0,2032.9,1.3064]
[1743044163726,6.34890865,2033.0,2032.9,1.3064]
[1743044166322,5.64830865,2033.0,2032.9,1.3064]
[1743044166627,5.64830865,2033.0,2032.9,1.9781]
[1743044171332,5.64830865,2033.0,2032.9,1.3064]
[1743044171834,0.9838,2032.7,2032.5,1.68117]
[1743044172032,0.9838,2032.7,2032.6,2.49845513]
[1743044172228,0.9838,2032.7,2032.6,3.48229513]
[1743044172438,4.2318,2032.7,2032.6,2.49845513]
[1743044173231,4.2318,2032.7,2032.6,1.83465513]
[1743044173733,4.2318,2032.7,2032.6,1.8347693]
[1743044175639,4.2318,2032.7,2032.6,2.8186093]
[1743044175937,4.2318,2032.7,2032.6,1.8347693]
[1743044177937,4.2318,2032.7,2032.6,2.8186093]
[1743044178138,4.2318,2032.7,2032.6,1.8347693]
[1743044179340,4.2318,2032.7,2032.6,2.8186093]
[1743044179741,4.2318,2032.7,2032.6,2.81885906]
[1743044182448,4.2318,2032.7,2032.6,1.83501906]
[1743044183536,4.2318,2032.7,2032.6,1.83491659]
[1743044184037,4.2318,2032.7,2032.6,2.81875659]
[1743044184235,4.2318,2032.7,2032.6,1.83491659]
[1743044184539,4.2318,2032.7,2031.9,2.46043]
[1743044184540,0.98393,2032.5,2032.3,0.98396]
[1743044184734,6.4428,2032.4,2032.2,40.8]
[1743044184931,4.89253,2032.3,2032.2,1.3511]
[1743044185439,4.89248,2032.3,2032.2,42.1511]
[1743044185634,4.89248,2032.3,2032.2,1.85207177]
[1743044187134,3.235,2032.3,2032.2,2.83610177]
[1743044187647,3.235,2032.3,2032.2,2.83577052]
[1743044187845,3.235,2032.3,2032.2,1.85174069]
[1743044188047,3.235,2032.3,2032.2,2.83577069]
[1743044188343,4.21898,2032.3,2032.2,1.85174069]
[1743044189047,3.235,2032.3,2032.2,1.85174069]
[1743044189247,4.21898,2032.3,2032.2,1.3511]
[1743044190047,3.235,2032.3,2032.2,1.3511]
[1743044190245,3.235,2032.3,2032.2,1.85150898]
[1743044190947,3.235,2032.3,2032.2,1.3511]
[1743044191144,0.98397,2032.4,2032.2,1.3511]
[1743044191352,3.229,2032.3,2032.2,1.3511]
[1743044191645,4.21298,2032.3,2032.2,1.3511]
[1743044192150,3.229,2032.3,2032.2,1.3511]
[1743044192448,4.21298,2032.3,2032.2,1.3511]
[1743044192643,5.50978,2032.3,2032.2,1.3511]
[1743044193050,4.5258,2032.3,2032.2,1.3511]
[1743044193245,5.50978,2032.3,2032.2,1.3511]
[1743044193437,4.5258,2032.3,2032.2,1.3511]
[1743044194152,5.50978,2032.3,2032.2,1.3511]
[1743044195145,2.28078,2032.3,2032.2,1.3511]
[1743044195450,5.51078,2032.3,2032.2,1.3511]
[1743044196146,4.5268,2032.3,2032.2,1.3511]
[1743044196346,5.51078,2032.3,2032.2,1.3511]
[1743044197147,4.5268,2032.3,2032.2,1.3511]
[1743044197448,5.51078,2032.3,2032.2,1.3511]
[1743044201147,5.51078,2032.3,2032.2,1.851589]
[1743044201346,5.51078,2032.3,2032.2,1.3511]
[1743044202758,5.51078,2032.3,2032.2,1.85164586]
[1743044203150,2.28078,2032.3,2032.2,1.3511]
[1743044203348,5.51078,2032.3,2032.2,1.3511]
[1743044204260,5.51078,2032.3,2032.2,1.85177094]
[1743044205564,5.51078,2032.3,2032.2,1.3511]
[1743044205759,5.51078,2032.3,2032.2,1.85184815]
[1743044206653,1.63572,2032.5,2032.3,0.98397]
[1743044206861,3.23,2032.4,2032.3,1.63967]
[1743044207253,4.21394,2032.4,2032.3,2.14063001]
[1743044207553,5.54594,2032.4,2032.3,0.6557]
[1743044208462,5.54594,2032.4,2032.3,1.15679899]
[1743044209059,5.54594,2032.4,2032.3,0.6557]
[1743044209752,4.562,2032.4,2032.2,41.78401]
[1743044209959,4.21395,2032.4,2032.3,0.98398]
[1743044210157,3.2078,2032.6,2032.5,0.98389]
[1743044210357,3.23,2032.6,2032.5,1.48496088]
[1743044211158,3.23,2032.6,2032.5,1.48494716]
[1743044213168,3.23,2032.6,2032.5,1.48498386]
[1743044213762,3.229,2032.7,2032.5,1.48495386]
[1743044214066,5.55902,2032.7,2032.5,0.98386]
[1743044214260,1.3462,2032.6,2032.5,0.98386]
[1743044214455,1.3462,2032.6,2032.5,1.48493549]
[1743044215265,1.3462,2032.6,2032.5,1.48488022]
[1743044215562,2.33004,2032.6,2032.5,1.48488022]
[1743044215762,1.3462,2032.6,2032.5,1.48488022]
[1743044216665,4.21281,2032.7,2032.6,0.98384]
[1743044216867,4.5636,2032.7,2032.6,2.16766022]
[1743044217365,1.3346,2032.7,2032.6,2.16766022]
[1743044217564,3.229,2032.8,2032.6,1.18382022]
[1743044217754,3.229,2032.8,2032.7,1.48477022]
[1743044218356,5.54732,2032.9,2032.7,1.48477022]
[1743044218565,4.5636,2032.9,2032.6,1.66661]
[1743044218765,0.98379,2032.7,2032.5,0.98386]
[1743044218964,1.64328,2032.8,2032.6,0.9838]
[1743044219163,0.6595,2032.8,2032.4,44.7125]
[1743044219364,1.3794,2032.8,2032.7,0.98379]
[1743044220558,2.36314,2032.8,2032.7,0.98379]
[1743044220758,1.3794,2032.8,2032.7,0.98379]
[1743044221266,1.3794,2032.8,2032.7,1.48408191]
[1743044221660,1.3794,2032.8,2032.7,0.98379]
[1743044221859,1.3794,2032.8,2032.7,1.48399282]
[1743044222063,1.3794,2032.8,2032.7,0.98379]
[1743044222764,3.229,2032.9,2032.8,0.9837]
[1743044222972,4.21269,2032.9,2032.8,1.9724]
[1743044223170,5.50569,2032.9,2032.8,1.9724]
[1743044223470,5.50569,2032.9,2032.8,1.3011]
[1743044224571,5.50569,2032.9,2032.8,2.28484]
[1743044224771,4.522,2032.9,2032.8,2.28484]
[1743044225363,5.50569,2032.9,2032.8,2.28484]
[1743044226260,5.50569,2032.9,2032.8,1.3011]
[1743044228975,5.50569,2032.9,2032.8,2.28484]
[1743044229177,5.50569,2032.9,2032.8,1.3011]
[1743044232963,0.98378,2032.8,2032.6,1.65192]
[1743044233166,0.98378,2032.8,2032.7,1.3574]
[1743044235279,0.98378,2032.8,2032.7,2.34119]
[1743044237276,0.98378,2032.8,2032.7,2.84148149]
[1743044237885,0.98378,2032.8,2032.7,2.84153112]
[1743044238281,0.98378,2032.8,2032.7,1.85774112]
[1743044238675,0.98378,2032.8,2032.7,1.3574]
[1743044239683,0.98378,2032.8,2032.7,2.8418777]
[1743044239885,0.98378,2032.8,2032.7,1.85808077]
[1743044241279,0.98378,2032.8,2032.7,1.3574]
[1743044246588,1.65778,2032.8,2032.7,1.3574]
[1743044250183,1.65778,2032.8,2032.7,1.85822787]
[1743044250391,3.228,2032.8,2032.7,2.84201787]
[1743044251292,4.92823865,2033.0,2032.8,0.98371]
[1743044251494,4.92823865,2033.0,2032.9,2.027]
[1743044251889,0.9838,2032.7,2032.5,3.8791]
[1743044252091,0.9838,2032.7,2032.6,2.52314046]
[1743044252491,0.98378,2032.8,2032.6,3.50695046]
[1743044252691,0.98378,2032.8,2032.7,1.84374046]
[1743044254588,0.98378,2032.8,2032.7,1.3429]
[1743044254799,0.98378,2032.8,2032.7,1.84375557]
[1743044255192,0.98378,2032.8,2032.7,1.3429]
[1743044256501,0.98384,2032.6,2032.5,0.6713]
[1743044256697,0.98389,2032.5,2032.4,2.0096]
[1743044256997,0.98389,2032.5,2032.4,1.84789918]
[1743044257398,0.98389,2032.5,2032.4,1.3469]
[1743044257793,0.98398,2032.3,2032.2,1.3764]
[1743044258001,0.98398,2032.3,2032.2,1.87741683]
[1743044259099,0.98398,2032.3,2032.2,3.30201683]
[1743044259705,0.98398,2032.3,2032.2,3.30175855]
[1743044260504,0.98398,2032.3,2032.2,2.801]
[1743044261193,0.98398,2032.3,2032.2,3.30172798]
[1743044261594,0.98398,2032.3,2032.2,3.30161803]
[1743044261995,3.228,2032.4,2032.2,4.28564803]
[1743044262302,4.21196,2032.4,2032.3,1.396]
[1743044267494,2.46,2032.3,2031.8,5.55741]
[1743044267700,0.98413,2032.0,2031.9,0.50040341]
[1743044268006,4.21213,2032.0,2031.9,0.50040341]
[1743044269300,0.98418,2031.9,2031.8,4.5732]
[1743044269501,0.98418,2031.9,2031.8,5.07343872]
[1743044270000,0.98418,2031.9,2031.8,4.5732]
[1743044270303,0.98418,2031.9,2031.8,3.8774]
[1743044271199,2.33928,2031.9,2031.8,3.8774]
[1743044271710,2.33928,2031.9,2031.8,3.2078]
[1743044272206,3.72008,2031.9,2031.8,3.2078]
[1743044273209,0.98423,2031.8,2031.7,0.6986]
[1743044273507,2.32723,2031.8,2031.7,0.6986]
[1743044280305,5.55523,2031.8,2031.7,0.6986]
[1743044282007,5.55523,2031.8,2031.7,2.0044]
[1743044283113,5.55523,2031.8,2031.7,2.98867]
[1743044283311,0.00736865,2032.0,2031.9,0.98418]
[1743044283516,0.00736865,2032.0,2031.9,4.19198]
[1743044283711,0.00736865,2032.0,2031.9,4.69188818]
[1743044283910,0.00736865,2032.0,2031.9,5.39218818]
[1743044286413,0.00736865,2032.0,2031.9,5.39265068]
[1743044288311,3.228,2032.5,2032.4,0.98392]
[1743044288517,4.21189,2032.5,2032.4,3.2078]
[1743044288920,0.98396,2032.4,2032.2,0.984]
[1743044289210,2.31366,2032.4,2032.3,2.0341]
[1743044290010,1.3297,2032.4,2032.3,3.01808]
[1743044290416,5.57908865,2032.5,2032.3,3.01808]
[1743044290616,4.56506865,2032.5,2032.4,2.35694]
[1743044290909,5.54895865,2032.5,2032.4,1.373]
[1743044292619,4.56506865,2032.5,2032.4,2.35694]
[1743044293117,5.54895865,2032.5,2032.4,2.35694]
[1743044293714,5.54895865,2032.5,2032.4,1.373]
[1743044295117,6.25915865,2032.5,2032.4,1.373]
[1743044300826,5.27526865,2032.5,2032.1,2.37513865]
[1743044301015,0.98398,2032.3,2032.2,1.3673]
[1743044301419,0.98403,2032.2,2032.1,0.00736865]
[1743044302515,0.98403,2032.2,2032.1,0.99144865]
[1743044302725,0.98403,2032.2,2032.1,1.37466865]
[1743044302921,0.98403,2032.2,2032.1,3.03704865]
[1743044303226,0.98403,2032.2,2032.1,2.05296865]
[1743044305321,5.5055,2032.3,2032.2,0.98403]
[1743044305522,5.5055,2032.3,2032.2,2.29493]
[1743044307025,5.5055,2032.3,2032.2,1.3109]
[1743044307824,1.2945,2032.3,2032.2,2.29493]
[1743044308029,0.71756865,2032.5,2032.4,0.98394]
[1743044308325,1.70145865,2032.5,2032.4,0.98394]
[1743044308527,0.71756865,2032.5,2032.4,1.48383825]
[1743044308727,1.70145865,2032.5,2032.4,2.14793825]
[1743044309119,1.70145865,2032.5,2032.4,1.64804]
[1743044309320,3.13665865,2032.5,2032.4,0.6641]
[1743044309720,3.13665865,2032.5,2032.4,2.0059]
[1743044310333,3.13665865,2032.5,2032.4,2.98984]
[1743044311633,3.13665865,2032.5,2032.4,3.48996591]
[1743044311933,3.13665865,2032.5,2032.4,3.48996162]
[1743044314234,2.15276865,2032.5,2032.4,3.48996162]
[1743044316129,2.81256865,2032.5,2032.4,3.48996162]
[1743044316627,3.79645865,2032.5,2032.4,3.48996162]
[1743044316935,3.79645865,2032.5,2032.4,3.49061856]
[1743044319134,2.81256865,2032.5,2032.4,3.49061856]
[1743044319336,3.79645865,2032.5,2032.4,2.50667856]
[1743044319537,0.984,2032.3,2032.1,0.99140865]
[1743044319830,0.98403,2032.2,2032.1,1.39366865]
[1743044320038,1.69223,2032.2,2032.1,0.00736865]
[1743044320235,1.69223,2032.2,2031.7,1.3863]
[1743044320236,0.98422,2031.9,2031.7,1.3863]
[1743044320438,3.916,2031.8,2031.3,3.2078]
[1743044320639,0.98438,2031.5,2031.4,0.50121235]
[1743044321231,0.98442,2031.4,2031.3,3.2078]
[1743044321424,0.7082,2031.4,2031.1,3.2078]
[1743044321624,2.97649,2031.3,2031.2,42.68303778]
[1743044321929,6.20249,2031.3,2031.2,40.8]
[1743044322130,0.98466,2030.9,2030.8,3.2078]
[1743044322334,3.2078,2031.2,2031.0,0.98459]
[1743044322527,3.2078,2031.2,2030.6,1.4]
[1743044322528,3.226,2031.1,2030.6,1.4]
[1743044322723,0.98471,2030.8,2030.7,0.49623742]
[1743044322931,0.98474,2030.8,2030.7,0.49629837]
[1743044323125,0.98474,2030.8,2030.5,3.2078]
[1743044323126,3.226,2030.8,2030.5,3.2078]
[1743044323328,2.0555,2030.7,2030.4,40.8]
[1743044323527,0.98486,2030.5,2030.4,40.8]
[1743044323731,3.226,2030.5,2030.2,3.2078]
[1743044323939,0.98495,2030.3,2030.2,3.2078]
[1743044324129,0.98495,2030.3,2030.0,40.8]
[1743044324328,4.6224,2030.2,2030.1,0.98505]
[1743044324537,4.6224,2030.2,2030.0,40.8]
[1743044325032,0.98505,2030.1,2030.0,40.8]
[1743044325231,2.28425,2030.1,2030.0,40.8]
[1743044325644,0.00738698,2030.4,2030.0,46.5078]
[1743044325838,7.41944,2031.0,2030.4,2.46226]
[1743044326036,6.4348,2031.0,2030.9,0.98466]
[1743044326233,7.41944,2031.0,2030.5,3.81378]
[1743044326432,6.4348,2031.0,2030.9,0.98466]
[1743044326631,6.4348,2031.0,2030.9,41.78466]
[1743044326832,3.227,2031.0,2030.9,41.78466]
[1743044328538,0.00738698,2031.2,2030.9,40.8]
[1743044328728,0.00738698,2031.2,2031.1,0.98456]
[1743044329340,0.00738698,2031.2,2031.1,1.44456]
[1743044329535,3.2078,2031.8,2031.4,2.46106]
[1743044329845,3.2078,2031.8,2031.6,0.98429]
[1743044329846,7.40582356,2031.8,2031.6,0.98429]
[1743044330141,3.228,2031.8,2031.7,0.98427]
[1743044330345,1.3109,2032.0,2031.5,2.4609]
[1743044330536,4.54628698,2032.0,2031.9,0.98418]
[1743044330738,0.98425,2031.8,2031.6,1.4296]
[1743044330944,0.98425,2031.8,2031.6,2.4139]
[1743044331144,0.98425,2031.8,2031.7,0.98427]
[1743044331450,0.98418,2031.9,2031.8,0.98422]
[1743044331633,1.3547,2031.9,2031.6,1.4296]
[1743044331941,1.3547,2031.9,2031.7,0.98425]
[1743044331942,0.98423,2031.8,2031.7,0.98425]
[1743044332338,2.3389,2031.9,2031.8,0.98423]
[1743044332644,2.33889,2031.9,2031.7,0.98423]
[1743044332843,0.98423,2031.8,2031.7,0.98423]
[1743044333343,2.33891,2031.9,2031.7,0.98423]
[1743044333747,2.33891,2031.9,2031.7,0.98427]
[1743044334042,0.98423,2031.8,2031.7,0.98427]
[1743044334346,2.33889,2031.9,2031.8,0.98423]
[1743044334547,2.33888,2031.9,2031.8,0.98423]
[1743044335146,1.3547,2031.9,2031.8,0.98423]
[1743044335748,2.33888,2031.9,2031.8,0.98423]
[1743044335943,2.33888,2031.9,2031.7,0.98424]
[1743044336249,2.33888,2031.9,2031.7,0.98427]
[1743044336550,2.33888,2031.9,2031.8,1.3558]
[1743044337448,2.33888,2031.9,2031.8,2.34003]
[1743044338246,1.3547,2031.9,2031.8,2.34003]
[1743044339943,2.33888,2031.9,2031.8,2.34003]
[1743044340147,1.3547,2031.9,2031.8,2.34003]
[1743044340445,4.21954698,2032.0,2031.9,0.98418]
[1743044340446,0.00738698,2032.0,2031.9,0.98418]
[1743044340657,0.00738698,2032.0,2031.9,2.40648]
[1743044344943,7.41873,2032.5,2032.0,2.46029]
[1743044345247,7.41873,2032.5,2032.3,0.98396]
[1743044345453,3.2078,2032.5,2032.4,2.31054]
[1743044345638,6.4348,2032.5,2032.4,2.31054]
[1743044362562,3.227,2032.5,2032.4,2.31054]
[1743044368273,3.227,2032.5,2032.4,2.80735597]
[1743044368463,3.227,2032.5,2032.4,2.80736048]
[1743044368867,4.5998,2032.5,2032.4,2.80736048]
[1743044370067,4.5998,2032.5,2032.4,2.80772257]
[1743044373975,1.3728,2032.5,2032.4,2.31054]
[1743044374184,1.3728,2032.5,2032.4,2.80796927]
[1743044375774,1.3728,2032.5,2032.2,3.2078]
[1743044375971,0.98398,2032.3,2032.2,3.2078]
[1743044376179,0.98398,2032.3,2032.2,3.7058465]
[1743044376379,3.00398,2032.3,2032.2,5.0881465]
[1743044377085,3.00398,2032.3,2032.2,5.08789241]
[1743044377587,3.00398,2032.3,2032.2,1.3823]
[1743044378380,6.22898,2032.3,2032.2,1.3823]
[1743044379386,6.22898,2032.3,2032.2,1.87934935]
[1743044379975,6.22898,2032.3,2032.2,1.3823]
[1743044380487,6.22898,2032.3,2032.2,1.87929497]